bitfinex/quotes_BTCUSD_20250127
["timestamp","ask_amount","ask_price","bid_price","bid_amount"]
[1738009217403,0.00014807,100060.0,100050.0,0.66175744]
[1738009217611,0.00014807,100060.0,100050.0,0.67175744]
[1738009217997,0.00014807,100060.0,100050.0,0.69141417]
[1738009218230,0.00014807,100060.0,100050.0,0.68141417]
[1738009218432,0.00014807,100060.0,100050.0,0.54632697]
[1738009218607,0.00014807,100060.0,100050.0,0.54732697]
[1738009219085,0.00014807,100060.0,100050.0,0.54632697]
[1738009219294,0.00014807,100060.0,100050.0,0.55032697]
[1738009219544,0.00014807,100060.0,100050.0,0.55162433]
[1738009219758,0.00028967,100060.0,100050.0,0.55162433]
[1738009220634,0.00028967,100060.0,100050.0,1.41832433]
[1738009222113,0.00028967,100060.0,100050.0,1.5387548]
[1738009222440,0.00028967,100060.0,100050.0,1.5447548]
[1738009223616,0.0009909,100070.0,100050.0,1.5447548]
[1738009223617,0.00070123,100070.0,100060.0,0.33291]
[1738009223833,0.0010457,100080.0,100070.0,0.332895]
[1738009224090,1.9338997,100090.0,100080.0,0.63344094]
[1738009224271,1.12000521,100090.0,100080.0,1.59748823]
[1738009224481,0.83245147,100090.0,100080.0,1.72324122]
[1738009224695,0.79933673,100090.0,100080.0,1.81169176]
[1738009224901,0.79933673,100090.0,100080.0,1.82169176]
[1738009225724,0.79933673,100090.0,100080.0,1.82569176]
[1738009226100,0.79933673,100090.0,100080.0,1.83469176]
[1738009226300,0.77533673,100090.0,100080.0,1.83469176]
[1738009227297,0.00190876,100120.0,100110.0,0.43826547]
[1738009227473,0.00205683,100120.0,100110.0,0.53561276]
[1738009227689,0.00105813,100120.0,100110.0,0.5460897]
[1738009228124,1.3e-07,100120.0,100110.0,0.81992017]
[1738009228335,0.12109229,100170.0,100110.0,0.81992017]
[1738009228336,2.9e-07,100170.0,100160.0,0.30976]
[1738009228557,0.00049359,100170.0,100160.0,0.58600823]
[1738009228766,0.00049359,100170.0,100160.0,0.47125137]
[1738009228972,0.00049359,100170.0,100160.0,0.60702974]
[1738009229200,5.9e-07,100170.0,100160.0,0.84588004]
[1738009229414,5.9e-07,100170.0,100160.0,0.67139862]
[1738009229651,5.9e-07,100170.0,100160.0,0.69539862]
[1738009229868,5.9e-07,100170.0,100160.0,0.66439862]
[1738009230075,0.0149134,100190.0,100180.0,0.14973]
[1738009230292,0.01506138,100190.0,100180.0,0.36350576]
[1738009230524,0.01506138,100190.0,100180.0,0.5461148]
[1738009230936,0.01506138,100190.0,100180.0,0.43068433]
[1738009231691,0.01506138,100190.0,100180.0,0.60307543]
[1738009232120,0.01506138,100190.0,100180.0,0.43068433]
[1738009232324,0.01506138,100190.0,100180.0,0.42692326]
[1738009232501,0.01506138,100190.0,100180.0,0.42792326]
[1738009233379,1.23609726,100190.0,100180.0,0.00784597]
[1738009233580,1.73768801,100190.0,100180.0,0.00784597]
[1738009233728,1.8350353,100190.0,100180.0,0.00784597]
[1738009234124,0.149745,100170.0,100160.0,0.08024]
[1738009234345,1.64774653,100170.0,100160.0,0.14976]
[1738009234559,1.49800153,100170.0,100160.0,0.14976]
[1738009234760,1.64774653,100170.0,100160.0,0.14976]
[1738009234959,0.99531149,100170.0,100160.0,0.24710729]
[1738009235187,1.49800153,100170.0,100160.0,0.24710729]
[1738009235397,0.99531149,100170.0,100160.0,0.27010729]
[1738009235617,0.99531149,100170.0,100160.0,0.27110729]
[1738009238273,1.49800153,100170.0,100160.0,0.27110729]
[1738009238482,1.49800153,100170.0,100160.0,0.27010729]
[1738009238688,1.50000153,100170.0,100160.0,0.27010729]
[1738009239268,1.50000153,100170.0,100160.0,0.27000729]
[1738009239488,0.99731149,100170.0,100160.0,0.27000729]
[1738009239688,1.50000153,100170.0,100160.0,0.27000729]
[1738009240449,0.99731149,100170.0,100160.0,0.27000729]
[1738009240657,0.99731149,100170.0,100160.0,0.42000729]
[1738009240796,1.50000153,100170.0,100160.0,0.42000729]
[1738009241001,0.99731149,100170.0,100160.0,0.42000729]
[1738009241401,1.49800153,100170.0,100160.0,0.42000729]
[1738009241826,1.64774653,100170.0,100160.0,0.28267927]
[1738009242152,1.64774653,100170.0,100160.0,0.43243927]
[1738009242562,1.64774653,100170.0,100160.0,0.33409198]
[1738009242787,1.64774653,100170.0,100160.0,0.01133198]
[1738009242996,1.64874653,100170.0,100160.0,0.01133198]
[1738009243233,1.64874653,100170.0,100150.0,0.499471]
[1738009243447,0.14976,100160.0,100150.0,0.372699]
[1738009243649,0.99531149,100160.0,100150.0,0.47004629]
[1738009244290,0.50269004,100160.0,100150.0,0.47004629]
[1738009244525,1.64776153,100160.0,100150.0,0.173]
[1738009245141,1.49800153,100160.0,100150.0,0.42412229]
[1738009245553,1.49800153,100160.0,100150.0,0.41392229]
[1738009245754,1.49800153,100160.0,100150.0,0.173775]
[1738009246164,1.64776153,100160.0,100150.0,0.173775]
[1738009246795,1.64776153,100160.0,100150.0,0.024]
[1738009247004,1.76986153,100160.0,100150.0,0.001]
[1738009248217,1.62010153,100160.0,100140.0,0.17256317]
[1738009248353,0.149775,100150.0,100140.0,0.02277717]
[1738009248559,1.64777653,100150.0,100140.0,0.02277717]
[1738009248757,0.99531149,100150.0,100140.0,0.26991446]
[1738009248963,1.49800153,100150.0,100140.0,0.26991446]
[1738009249237,0.99531149,100150.0,100140.0,0.26991446]
[1738009249436,0.99531149,100150.0,100140.0,0.27091446]
[1738009249657,0.99531149,100150.0,100140.0,0.27040805]
[1738009249861,1.49800153,100150.0,100140.0,0.27040805]
[1738009250088,1.49800153,100150.0,100140.0,0.27440805]
[1738009250216,1.64777653,100150.0,100140.0,0.17706076]
[1738009251832,1.64777653,100150.0,100140.0,0.02727076]
[1738009252027,1.64777653,100150.0,100140.0,0.17906076]
[1738009252259,1.64777653,100150.0,100140.0,0.02927076]
[1738009252499,1.64777653,100150.0,100140.0,0.00190318]
[1738009253256,1.64777653,100150.0,100140.0,0.01213568]
[1738009253455,1.49800153,100150.0,100140.0,0.28227297]
[1738009254749,1.49800153,100150.0,100140.0,0.78227297]
[1738009255334,1.64777653,100150.0,100140.0,0.78227297]
[1738009255511,1.49800153,100150.0,100140.0,0.78227297]
[1738009255922,0.99531149,100150.0,100140.0,1.28256991]
[1738009256135,1.49800153,100150.0,100140.0,1.28256991]
[1738009256348,0.99531149,100150.0,100140.0,1.28256991]
[1738009256520,0.99531149,100150.0,100140.0,1.43256991]
[1738009257126,0.50283144,100160.0,100150.0,0.023]
[1738009257362,0.50283144,100160.0,100150.0,0.28028549]
[1738009257363,0.99545289,100160.0,100150.0,0.28028549]
[1738009257565,1.49814293,100160.0,100150.0,0.28028549]
[1738009257977,0.0001414,100160.0,100150.0,0.43028549]
[1738009258689,0.0001414,100160.0,100150.0,0.5762177]
[1738009259425,0.0001414,100160.0,100150.0,0.54536686]
[1738009259647,0.0001414,100160.0,100150.0,0.43028549]
[1738009260335,0.0001414,100160.0,100150.0,0.43728549]
[1738009260546,0.0011414,100160.0,100150.0,0.43728549]
[1738009260963,0.0011414,100160.0,100150.0,0.44028549]
[1738009261571,0.0011414,100160.0,100150.0,0.43728549]
[1738009261756,0.0001414,100160.0,100150.0,0.54736686]
[1738009262168,0.0001414,100160.0,100150.0,0.55136686]
[1738009262366,0.0001414,100160.0,100150.0,0.58223757]
[1738009263104,0.50283144,100160.0,100150.0,0.58223757]
[1738009263466,0.0001414,100160.0,100150.0,0.58223757]
[1738009266314,4e-07,100160.0,100150.0,0.72493757]
[1738009266515,0.0159557,100190.0,100160.0,0.15]
[1738009266713,0.0159557,100190.0,100180.0,0.43781137]
[1738009266900,0.0159557,100190.0,100180.0,0.56602937]
[1738009267101,0.0149649,100190.0,100180.0,0.57611931]
[1738009267902,0.01545849,100190.0,100180.0,0.57611931]
[1738009268733,0.01745849,100190.0,100180.0,0.57611931]
[1738009268930,0.01545849,100190.0,100180.0,0.57611931]
[1738009269134,0.01545849,100190.0,100180.0,0.57911931]
[1738009269335,0.01545849,100190.0,100180.0,0.58611931]
[1738009270821,0.01545849,100190.0,100180.0,0.59631605]
[1738009271551,0.01545849,100190.0,100180.0,0.64501605]
[1738009271759,0.01545849,100190.0,100180.0,0.66501605]
[1738009271760,4.9e-07,100190.0,100180.0,0.66501605]
[1738009271964,4.9e-07,100190.0,100180.0,0.69540283]
[1738009272766,4.9e-07,100190.0,100180.0,0.68540283]
[1738009273172,4.9e-07,100190.0,100180.0,0.60970283]
[1738009273587,4.9e-07,100190.0,100180.0,0.61570283]
[1738009273992,4.9e-07,100190.0,100180.0,0.58883212]
[1738009274202,4.9e-07,100190.0,100180.0,0.52875883]
[1738009274622,4.9e-07,100190.0,100180.0,0.50837205]
[1738009274867,4.9e-07,100190.0,100180.0,0.37029068]
[1738009275077,4.9e-07,100190.0,100180.0,0.62517531]
[1738009275285,4.9e-07,100190.0,100180.0,0.64817531]
[1738009275493,4.9e-07,100190.0,100180.0,0.49817531]
[1738009275703,0.99531198,100190.0,100180.0,0.49817531]
[1738009275913,0.99531198,100190.0,100180.0,0.64817531]
[1738009276272,4.9e-07,100190.0,100180.0,0.64817531]
[1738009277760,4.9e-07,100190.0,100180.0,0.68814631]
[1738009278184,4.9e-07,100190.0,100180.0,0.5982196]
[1738009280477,4.9e-07,100190.0,100180.0,0.59851654]
[1738009280879,0.00014189,100190.0,100180.0,0.59851654]
[1738009281490,0.99545338,100190.0,100180.0,0.31043517]
[1738009281690,0.99545338,100190.0,100180.0,0.02338688]
[1738009281691,1.14516838,100190.0,100180.0,0.02338688]
[1738009281869,1.64785842,100190.0,100180.0,0.17311688]
[1738009282068,1.64785842,100190.0,100180.0,0.17670155]
[1738009282516,1.64785842,100190.0,100180.0,0.02697155]
[1738009282750,1.64785842,100190.0,100180.0,0.01397155]
[1738009283158,1.64785842,100190.0,100180.0,0.01897155]
[1738009283571,1.74785842,100190.0,100180.0,0.01897155]
[1738009283782,0.00014189,100190.0,100180.0,0.38212836]
[1738009283989,0.00014189,100190.0,100180.0,0.55413021]
[1738009284609,0.00014189,100190.0,100180.0,0.55213021]
[1738009285006,0.00014189,100190.0,100180.0,0.54913021]
[1738009285460,0.00014189,100190.0,100180.0,0.55613021]
[1738009285664,0.00014189,100190.0,100180.0,0.54913021]
[1738009286050,0.00014189,100190.0,100180.0,0.56113021]
[1738009286253,0.00014189,100190.0,100180.0,0.59105244]
[1738009286491,0.00014189,100190.0,100180.0,0.57805244]
[1738009286689,0.00014189,100190.0,100180.0,0.63531336]
[1738009286974,0.00014189,100190.0,100180.0,0.63931336]
[1738009290759,0.00014189,100190.0,100180.0,0.64953053]
[1738009290980,0.00014189,100190.0,100180.0,0.47718824]
[1738009291373,0.00014189,100190.0,100180.0,0.64953053]
[1738009293252,0.00014189,100190.0,100180.0,0.6803353]
[1738009293411,0.00014189,100190.0,100180.0,0.64953053]
[1738009294055,0.00014189,100190.0,100180.0,0.65105053]
[1738009294440,0.00014189,100190.0,100180.0,0.68187732]
[1738009298890,0.00014189,100190.0,100180.0,0.3166128]
[1738009299106,0.00014189,100190.0,100180.0,0.27556884]
[1738009299317,0.00014189,100190.0,100180.0,0.62091113]
[1738009300815,0.00014189,100190.0,100180.0,0.27556884]
[1738009301020,0.22996628,100190.0,100180.0,0.1740422]
[1738009301226,0.07924189,100190.0,100180.0,0.1740422]
[1738009301474,0.22996628,100190.0,100180.0,0.1970422]
[1738009301693,0.07924189,100190.0,100180.0,0.1740422]
[1738009301900,0.08025128,100190.0,100180.0,0.1740422]
[1738009302096,0.08025128,100190.0,100180.0,0.1700422]
[1738009302404,0.08025128,100190.0,100180.0,0.1860422]
[1738009302605,0.08025128,100190.0,100180.0,0.1890422]
[1738009302808,0.08025128,100190.0,100180.0,0.1870422]
[1738009303174,0.08025128,100190.0,100180.0,0.1890422]
[1738009303412,0.08025128,100190.0,100180.0,0.1889422]
[1738009306232,0.07825128,100190.0,100180.0,0.1889422]
[1738009306633,0.22796628,100190.0,100180.0,0.1659422]
[1738009306841,0.37315689,100190.0,100180.0,0.0162122]
[1738009307926,0.37315689,100190.0,100180.0,0.0142122]
[1738009308505,0.37315689,100190.0,100180.0,0.0112122]
[1738009308843,0.37515689,100190.0,100180.0,0.0112122]
[1738009309899,0.12544189,100190.0,100180.0,0.28128949]
[1738009310201,0.27616628,100190.0,100180.0,0.0112122]
[1738009310455,0.27515689,100190.0,100180.0,0.0112122]
[1738009311152,0.27515689,100190.0,100180.0,0.5112122]
[1738009311353,0.27515689,100190.0,100180.0,0.6609422]
[1738009312095,0.19582151,100190.0,100180.0,0.6609422]
[1738009312472,0.29582151,100190.0,100180.0,0.5112122]
[1738009313930,0.4031688,100190.0,100180.0,0.5112122]
[1738009314982,0.3798688,100190.0,100180.0,0.5112122]
[1738009315387,0.3698688,100190.0,100180.0,0.5112122]
[1738009316163,0.5198688,100190.0,100180.0,0.5112122]
[1738009316370,0.55968163,100190.0,100180.0,0.5112122]
[1738009316582,0.55768163,100190.0,100180.0,0.5112122]
[1738009317094,0.55782303,100190.0,100180.0,0.5112122]
[1738009317297,0.65517032,100190.0,100180.0,0.5112122]
[1738009317496,0.65717032,100190.0,100180.0,0.5112122]
[1738009317986,0.65717032,100190.0,100180.0,0.3613922]
[1738009317987,0.74257032,100190.0,100180.0,0.3613922]
[1738009318200,0.74566381,100190.0,100180.0,0.19698466]
[1738009318408,0.74666381,100190.0,100180.0,0.19698466]
[1738009318897,0.342075,100150.0,100140.0,0.50029694]
[1738009319198,1.93742382,100150.0,100140.0,0.50029694]
[1738009319438,1.83742382,100150.0,100140.0,0.50029694]
[1738009320184,2.0736891,100150.0,100140.0,0.50029694]
[1738009320441,2.07383675,100150.0,100140.0,0.50029694]
[1738009320706,1.49814918,100150.0,100140.0,0.65108694]
[1738009320932,1.64792418,100150.0,100140.0,0.50129694]
[1738009321190,1.86541313,100150.0,100140.0,0.50129694]
[1738009322986,1.86641313,100150.0,100140.0,0.50129694]
[1738009323252,1.86641313,100150.0,100140.0,0.50029694]
[1738009323504,1.86741313,100150.0,100140.0,0.50029694]
[1738009325022,1.51029084,100150.0,100140.0,0.65008694]
[1738009325358,1.51029084,100150.0,100140.0,0.77043423]
[1738009325523,0.99745914,100150.0,100140.0,0.77043423]
[1738009325760,0.99645914,100150.0,100140.0,0.77043423]
[1738009326010,1.49814918,100150.0,100140.0,0.77043423]
[1738009326261,1.49814918,100150.0,100140.0,0.77243423]
[1738009326504,1.64792418,100150.0,100140.0,0.50029694]
[1738009326747,1.64792418,100150.0,100140.0,0.65508694]
[1738009327261,1.64792418,100150.0,100140.0,0.50029694]
[1738009327750,1.49814918,100150.0,100140.0,0.65008694]
[1738009327986,1.49814918,100150.0,100140.0,0.65208694]
[1738009328473,1.49914918,100150.0,100140.0,0.65208694]
[1738009328738,1.49929058,100150.0,100140.0,0.65208694]
[1738009328988,1.49829058,100150.0,100140.0,0.65208694]
[1738009329232,1.49929058,100150.0,100140.0,0.65008694]
[1738009329400,1.50129058,100150.0,100140.0,0.65008694]
[1738009329779,1.64906558,100150.0,100140.0,0.65008694]
[1738009330015,1.65106558,100150.0,100140.0,0.65008694]
[1738009330224,1.65106558,100150.0,100140.0,0.50029694]
[1738009330225,1.78953738,100150.0,100140.0,0.50029694]
[1738009330458,1.86953738,100150.0,100140.0,0.50029694]
[1738009330688,1.83841287,100150.0,100140.0,0.50029694]
[1738009332974,1.50129058,100150.0,100140.0,0.50029694]
[1738009333180,1.65106558,100150.0,100140.0,0.69908694]
[1738009333519,1.50129058,100150.0,100140.0,0.69908694]
[1738009333751,1.64906558,100150.0,100140.0,0.69908694]
[1738009333965,0.99560054,100150.0,100140.0,0.69908694]
[1738009334171,1.65006558,100150.0,100140.0,0.69908694]
[1738009334537,1.65106558,100150.0,100140.0,0.69908694]
[1738009334749,1.65006558,100150.0,100140.0,0.69908694]
[1738009335141,1.65106558,100150.0,100140.0,0.69908694]
[1738009335372,1.64906558,100150.0,100140.0,0.54929694]
[1738009335590,1.64906558,100150.0,100140.0,0.50029694]
[1738009335591,1.94284533,100150.0,100140.0,0.50029694]
[1738009335819,1.94284533,100150.0,100140.0,0.50229694]
[1738009336061,1.94284533,100150.0,100140.0,0.50029694]
[1738009336281,1.94484533,100150.0,100140.0,0.50029694]
[1738009336917,1.93091287,100150.0,100140.0,0.50029694]
[1738009337136,1.84841287,100150.0,100140.0,0.50029694]
[1738009337342,1.75106558,100150.0,100140.0,0.50029694]
[1738009337556,1.50129058,100150.0,100140.0,0.65008694]
[1738009337777,1.65106558,100150.0,100140.0,0.65008694]
[1738009338049,1.50129058,100150.0,100140.0,0.65008694]
[1738009342454,1.65106558,100150.0,100140.0,0.65008694]
[1738009342793,1.65106558,100150.0,100140.0,0.50029694]
[1738009342933,1.75106558,100150.0,100140.0,0.50029694]
[1738009344018,1.60129058,100150.0,100140.0,0.65008694]
[1738009344163,1.75106558,100150.0,100140.0,0.65008694]
[1738009344988,1.50129058,100150.0,100140.0,0.65008694]
[1738009346255,1.49829058,100150.0,100140.0,0.65008694]
[1738009346454,1.49829058,100150.0,100140.0,0.65208694]
[1738009346660,1.49929058,100150.0,100140.0,0.65208694]
[1738009347044,1.49829058,100150.0,100140.0,0.65208694]
[1738009349269,0.00028905,100150.0,100140.0,0.65208694]
[1738009349472,0.00129844,100150.0,100140.0,0.65208694]
[1738009350290,0.00028905,100150.0,100140.0,0.81404605]
[1738009350501,0.00028905,100150.0,100140.0,0.72208694]
[1738009351224,0.00028905,100150.0,100140.0,0.93439334]
[1738009351408,0.00028905,100150.0,100140.0,1.01219334]
[1738009352188,0.00028905,100150.0,100140.0,0.90724405]
[1738009352399,0.00028905,100150.0,100140.0,0.79988694]
[1738009352822,0.00028905,100150.0,100140.0,0.69908694]
[1738009353768,0.00129844,100150.0,100140.0,0.69908694]
[1738009354556,0.00129844,100150.0,100140.0,0.50229694]
[1738009354557,0.26107344,100150.0,100140.0,0.50229694]
[1738009354730,0.35741134,100150.0,100140.0,0.50229694]
[1738009355159,0.26006405,100150.0,100140.0,0.50229694]
[1738009355550,0.27023223,100150.0,100140.0,0.50229694]
[1738009355932,0.26023223,100150.0,100140.0,0.50229694]
[1738009356723,0.11045723,100150.0,100140.0,0.69728694]
[1738009356928,0.00129844,100150.0,100140.0,0.69728694]
[1738009357142,0.00028905,100150.0,100140.0,0.77518694]
[1738009357362,0.00028905,100150.0,100140.0,1.01049334]
[1738009357556,0.00028905,100150.0,100140.0,0.89553423]
[1738009358819,0.00028905,100150.0,100140.0,1.01049334]
[1738009359460,0.00028905,100150.0,100140.0,1.17046886]
[1738009359664,0.00028905,100150.0,100140.0,1.28542797]
[1738009360079,0.00028905,100150.0,100140.0,1.31638558]
[1738009360282,0.0009823,100170.0,100160.0,0.56081911]
[1738009360499,0.0009823,100170.0,100160.0,0.7736191]
[1738009360713,0.99531149,100180.0,100170.0,0.452045]
[1738009360921,0.99531149,100180.0,100170.0,0.6643514]
[1738009361349,1.49800153,100180.0,100170.0,0.6643514]
[1738009363279,1.49800153,100180.0,100170.0,0.6653514]
[1738009364103,1.49800153,100180.0,100170.0,0.67553568]
[1738009364313,1.49800153,100180.0,100170.0,0.87518768]
[1738009365255,1.49814313,100180.0,100170.0,0.87518768]
[1738009365913,0.99545309,100180.0,100170.0,0.87518768]
[1738009366125,0.99545309,100180.0,100170.0,0.99014679]
[1738009366126,0.0001416,100180.0,100170.0,0.99014679]
[1738009367171,0.0001416,100180.0,100170.0,0.98914679]
[1738009367385,0.0001416,100180.0,100170.0,0.87918768]
[1738009367592,0.99545309,100180.0,100170.0,0.87918768]
[1738009368988,0.0001416,100180.0,100170.0,0.87918768]
[1738009369189,0.99545309,100180.0,100170.0,0.87918768]
[1738009369397,0.99545309,100180.0,100170.0,0.88118768]
[1738009370239,0.0001416,100180.0,100170.0,0.88118768]
[1738009370871,0.0001416,100180.0,100170.0,0.99614679]
[1738009371077,0.0001416,100180.0,100170.0,1.49614679]
[1738009371716,1.49814313,100180.0,100170.0,1.49614679]
[1738009372141,0.99545309,100180.0,100170.0,1.49614679]
[1738009376436,0.0001416,100180.0,100170.0,1.49614679]
[1738009377217,0.0001416,100180.0,100170.0,1.49644394]
[1738009379153,0.0001416,100180.0,100170.0,1.50363663]
[1738009380229,0.0001414,100190.0,100170.0,1.50363663]
[1738009380230,1e-06,100190.0,100170.0,1.50363663]
[1738009380440,0.0017518,100220.0,100210.0,0.322685]
[1738009380691,0.0017518,100220.0,100210.0,0.6638914]
[1738009381093,0.0017518,100220.0,100210.0,0.67193988]
[1738009381303,8e-07,100220.0,100210.0,0.67193988]
[1738009381508,0.99730549,100250.0,100240.0,0.29964]
[1738009381715,0.99745352,100250.0,100240.0,0.5585464]
[1738009381912,0.99645952,100250.0,100240.0,0.56649769]
[1738009382289,0.00114803,100250.0,100240.0,0.58949769]
[1738009383219,0.00414803,100250.0,100240.0,0.7044568]
[1738009383437,0.00414803,100250.0,100240.0,0.58949769]
[1738009383642,0.00114803,100250.0,100240.0,0.58949769]
[1738009384763,0.00114803,100250.0,100240.0,0.59249769]
[1738009386028,0.00114803,100250.0,100240.0,0.58949769]
[1738009386233,0.00114803,100250.0,100240.0,0.7314568]
[1738009386480,0.00105816,100250.0,100240.0,1.09849769]
[1738009386868,0.00105816,100250.0,100240.0,1.09649769]
[1738009387317,0.00105816,100250.0,100240.0,1.09949769]
[1738009387497,0.00105816,100250.0,100240.0,1.11927058]
[1738009388676,0.00119966,100250.0,100240.0,1.11927058]
[1738009389463,0.00119966,100250.0,100240.0,1.12944305]
[1738009391282,0.0001414,100260.0,100250.0,0.322625]
[1738009391429,0.0001414,100260.0,100250.0,0.64989051]
[1738009391633,0.0001414,100260.0,100250.0,0.65843296]
[1738009392665,0.0001414,100260.0,100250.0,0.66043296]
[1738009393149,0.0001414,100260.0,100250.0,0.65843296]
[1738009393393,0.0001414,100260.0,100250.0,0.66843296]
[1738009393570,0.0001414,100260.0,100250.0,0.79243296]
[1738009393777,0.0001414,100260.0,100250.0,0.78233296]
[1738009393983,4.14e-05,100260.0,100250.0,0.79133296]
[1738009394181,4e-07,100260.0,100250.0,0.79133296]
[1738009394383,8e-07,100270.0,100260.0,0.221311]
[1738009394609,8e-07,100270.0,100260.0,0.54857651]
[1738009394809,4e-07,100280.0,100270.0,0.52651422]
[1738009395046,4e-07,100280.0,100270.0,0.62386151]
[1738009395265,7.1e-07,100300.0,100290.0,0.273566]
[1738009395481,7.1e-07,100300.0,100290.0,0.5058724]
[1738009395685,0.0006,100330.0,100320.0,0.28748011]
[1738009395887,0.0021028,100330.0,100320.0,0.5348274]
[1738009396067,0.0021028,100330.0,100320.0,0.43748011]
[1738009396068,0.00109341,100330.0,100320.0,0.43748011]
[1738009396315,0.00109341,100330.0,100320.0,0.54382055]
[1738009397291,0.00109341,100330.0,100320.0,0.70547966]
[1738009399484,0.00109341,100330.0,100320.0,0.70847966]
[1738009399893,0.00123491,100330.0,100320.0,0.71047966]
[1738009400308,0.9965464,100330.0,100320.0,0.71047966]
[1738009401617,0.9965464,100330.0,100320.0,0.72035462]
[1738009402243,1.49923644,100330.0,100320.0,0.72035462]
[1738009402405,0.9965464,100330.0,100320.0,0.72035462]
[1738009402626,1.49923644,100330.0,100320.0,0.01399315]
[1738009402828,1.72694244,100330.0,100320.0,0.01399315]
[1738009403391,1.72694244,100330.0,100320.0,0.01199315]
[1738009403605,1.72694244,100330.0,100320.0,0.00899315]
[1738009404456,1.72694244,100330.0,100320.0,0.00889315]
[1738009404887,1.72684244,100330.0,100320.0,0.00889315]
[1738009405094,1.49913644,100330.0,100320.0,0.15841415]
[1738009406409,0.9964464,100330.0,100320.0,0.42876144]
[1738009407932,1.49913644,100330.0,100320.0,0.42876144]
[1738009408169,0.00113491,100330.0,100320.0,0.42876144]
[1738009408356,0.00113491,100330.0,100320.0,0.54372055]
[1738009408554,0.00113491,100330.0,100320.0,0.42876144]
[1738009408781,0.00113491,100330.0,100320.0,0.43076144]
[1738009408978,1.49913644,100330.0,100320.0,0.43076144]
[1738009409177,1.49913644,100330.0,100320.0,0.81341415]
[1738009409551,0.9964464,100330.0,100320.0,0.91076144]
[1738009409767,1.64864244,100330.0,100320.0,0.51389315]
[1738009409981,1.49913644,100330.0,100320.0,0.66341415]
[1738009411906,1.64864244,100330.0,100320.0,0.66341415]
[1738009412252,1.64864244,100330.0,100320.0,0.51389315]
[1738009412641,1.49913644,100330.0,100320.0,0.66341415]
[1738009412843,1.64864244,100330.0,100320.0,0.66341415]
[1738009413086,1.64864244,100330.0,100320.0,0.66141415]
[1738009413305,0.9964464,100330.0,100320.0,0.66141415]
[1738009413511,1.49913644,100330.0,100320.0,0.65841415]
[1738009414932,1.49913644,100330.0,100320.0,0.66041415]
[1738009415598,1.49913644,100330.0,100320.0,0.65841415]
[1738009416172,0.9964464,100330.0,100320.0,0.65841415]
[1738009416384,1.49913644,100330.0,100320.0,0.65841415]
[1738009416972,0.9964464,100330.0,100320.0,0.65841415]
[1738009417735,1.49913644,100330.0,100320.0,0.65841415]
[1738009418322,0.9964464,100330.0,100320.0,0.65841415]
[1738009418524,1.49913644,100330.0,100320.0,0.65841415]
[1738009419170,0.9964464,100330.0,100320.0,0.66141415]
[1738009419377,1.49913644,100330.0,100320.0,0.66141415]
[1738009419526,0.9964464,100330.0,100320.0,0.76076144]
[1738009419731,1.49913644,100330.0,100320.0,0.76076144]
[1738009420185,0.9964464,100330.0,100320.0,0.76076144]
[1738009420390,0.9964464,100330.0,100320.0,0.87572055]
[1738009421200,0.00113491,100330.0,100320.0,0.89872055]
[1738009421415,0.00113491,100330.0,100320.0,1.16367966]
[1738009421626,0.00113491,100330.0,100320.0,1.04872055]
[1738009421847,0.00113491,100330.0,100320.0,1.17552055]
[1738009422057,0.00113491,100330.0,100320.0,1.20421483]
[1738009422259,0.00113491,100330.0,100320.0,1.31917394]
[1738009422884,0.00113491,100330.0,100320.0,1.32517394]
[1738009423324,0.00113491,100330.0,100320.0,1.32547067]
[1738009423525,0.99635209,100350.0,100330.0,0.173]
[1738009423736,0.99649979,100350.0,100340.0,0.3617974]
[1738009423966,0.99649979,100350.0,100340.0,0.40056205]
[1738009424185,0.0002077,100350.0,100340.0,0.40056205]
[1738009424396,0.0002077,100350.0,100340.0,0.57356205]
[1738009424595,0.0002077,100350.0,100340.0,0.69936205]
[1738009425005,0.0002077,100350.0,100340.0,0.70436205]
[1738009425642,0.0002077,100350.0,100340.0,0.70236205]
[1738009425850,0.99551919,100350.0,100340.0,0.70236205]
[1738009426063,0.99551919,100350.0,100340.0,0.70936205]
[1738009427608,0.99551919,100350.0,100340.0,0.72888823]
[1738009428652,0.99551919,100350.0,100340.0,0.34460294]
[1738009428887,1.49820923,100350.0,100340.0,0.31390866]
[1738009429733,0.99551919,100350.0,100340.0,0.26490866]
[1738009429941,1.49820923,100350.0,100340.0,0.26490866]
[1738009430532,1.49820923,100350.0,100340.0,0.16756137]
[1738009430933,1.49820923,100350.0,100340.0,0.16456137]
[1738009431131,1.49820923,100350.0,100340.0,0.15756137]
[1738009431470,0.99551919,100350.0,100340.0,0.37486777]
[1738009431628,0.99551919,100350.0,100340.0,0.40561483]
[1738009431833,1.49820923,100350.0,100340.0,0.40561483]
[1738009432352,1.49820923,100350.0,100340.0,0.37486777]
[1738009432981,1.49820923,100350.0,100340.0,0.40560709]
[1738009433232,0.99551919,100350.0,100340.0,0.40560709]
[1738009433550,0.0002077,100350.0,100340.0,0.62760527]
[1738009434164,0.0002077,100350.0,100340.0,0.62260527]
[1738009434376,0.99531149,100360.0,100350.0,0.37177]
[1738009434584,0.99630889,100370.0,100360.0,0.149461]
[1738009434793,0.99630889,100370.0,100360.0,0.3617674]
[1738009434993,0.99531149,100380.0,100370.0,0.149447]
[1738009435199,0.99531149,100380.0,100370.0,0.26440611]
[1738009435411,1.51419968,100390.0,100370.0,0.36972453]
[1738009435611,1.51419968,100390.0,100380.0,0.149432]
[1738009435793,1.51419968,100390.0,100380.0,0.149332]
[1738009436001,0.51779269,100390.0,100380.0,0.27224695]
[1738009436424,0.51779269,100390.0,100380.0,0.15728784]
[1738009436638,1.51310418,100390.0,100380.0,0.15728784]
[1738009437257,1.51310418,100390.0,100380.0,0.51959424]
[1738009437474,0.01510265,100390.0,100380.0,0.70465335]
[1738009438069,0.01510265,100390.0,100380.0,0.81142128]
[1738009438509,0.01510265,100390.0,100380.0,0.78075335]
[1738009438710,0.01510265,100390.0,100380.0,0.78375335]
[1738009439041,0.01510265,100390.0,100380.0,0.56869424]
[1738009439425,0.01510265,100390.0,100380.0,0.57569424]
[1738009439747,0.01500265,100390.0,100380.0,0.59869424]
[1738009440374,0.01500265,100390.0,100380.0,0.59669424]
[1738009441057,0.01500265,100390.0,100380.0,0.59969424]
[1738009441291,0.01500265,100390.0,100380.0,0.46173513]
[1738009441579,0.51769269,100390.0,100380.0,0.42669424]
[1738009441792,0.01500265,100390.0,100380.0,0.42669424]
[1738009442042,0.01500265,100390.0,100380.0,0.42369424]
[1738009442243,0.01500265,100390.0,100380.0,0.43969424]
[1738009442446,0.01500265,100390.0,100380.0,0.44169424]
[1738009442881,0.01500265,100390.0,100380.0,0.44469424]
[1738009443302,0.01500265,100390.0,100380.0,0.59469424]
[1738009443701,0.01500265,100390.0,100380.0,0.59269424]
[1738009444134,0.01500265,100390.0,100380.0,0.58969424]
[1738009444289,0.01500265,100390.0,100380.0,0.59469424]
[1738009444692,0.01500265,100390.0,100380.0,0.58969424]
[1738009444893,0.01500265,100390.0,100380.0,0.59669424]
[1738009445075,0.01500265,100390.0,100380.0,0.59969424]
[1738009446305,0.01500265,100390.0,100380.0,0.71455335]
[1738009446539,0.01490265,100390.0,100380.0,0.71455335]
[1738009446767,6.5e-07,100390.0,100380.0,0.71455335]